bitfinex-derivatives/quotes_SOLF0:USTF0_20241029
["timestamp","ask_amount","ask_price","bid_price","bid_amount"]
[1730215438040,1.2526,179.69,179.6,2.7848]
[1730215439955,1.2526,179.69,179.61,2.7847]
[1730215440354,1.2526,179.69,179.56,14.97966682]
[1730215440649,1.2526,179.69,179.62,2.7846]
[1730215441255,1.2526,179.69,179.61,2.7847]
[1730215442254,14.97966682,179.67,179.53,19.85966682]
[1730215442453,6.208,179.66,179.53,14.97966682]
[1730215442654,14.97966682,179.64,179.52,142.14108941]
[1730215442960,1.2501,179.63,179.52,142.14108941]
[1730215443159,1.2501,179.63,179.58,2.7851]
[1730215443354,1.2501,179.63,179.53,14.97966682]
[1730215443547,1.328,179.66,179.53,14.97966682]
[1730215443747,4.88,179.65,179.61,2.7846]
[1730215443955,4.88,179.65,179.56,14.97966682]
[1730215444346,4.88,179.65,179.61,2.7847]
[1730215445459,4.88,179.65,179.62,2.7845]
[1730215445658,4.88,179.65,179.59,9.36214768]
[1730215446960,4.88,179.65,179.57,9.36214768]
[1730215447553,4.88,179.65,179.6,2.7848]
[1730215447952,4.88,179.65,179.57,9.36214768]
[1730215448155,4.88,179.65,179.61,2.7846]
[1730215450254,4.88,179.65,179.6,2.7848]
[1730215451162,14.24214768,179.65,179.54,9.36214768]
[1730215451461,9.36214768,179.63,179.54,9.36214768]
[1730215451658,1.2735,179.62,179.52,151.50323709]
[1730215452556,1.2735,179.62,179.58,2.7852]
[1730215452964,1.2735,179.62,179.54,9.36214768]
[1730215453361,1.2735,179.62,179.58,2.7851]
[1730215455663,10.63564768,179.62,179.58,2.7851]
[1730215455862,9.36214768,179.6,179.55,2.7856]
[1730215456070,4.88,179.59,179.55,2.7856]
[1730215456971,4.88,179.59,179.5,9.36214768]
[1730215457178,6.1508,179.59,179.5,9.36214768]
[1730215457370,9.36214768,179.58,179.52,2.7861]
[1730215457670,12.21545616,179.58,179.47,9.36214768]
[1730215457969,12.21545616,179.58,179.54,2.7857]
[1730215458464,12.21545616,179.58,179.47,9.36214768]
[1730215458669,12.21545616,179.58,179.53,2.7859]
[1730215459678,12.21545616,179.58,179.52,2.7861]
[1730215460468,12.21545616,179.58,179.47,9.36214768]
[1730215460667,12.21545616,179.58,179.51,2.7862]
[1730215460974,12.21545616,179.58,179.47,9.36214768]
[1730215461563,12.21545616,179.58,179.54,2.7858]
[1730215462077,12.21545616,179.58,179.43,11.1978]
[1730215462078,2.85330848,179.58,179.5,9.36214768]
[1730215462281,6.1508,179.59,179.5,9.36214768]
[1730215462770,6.1508,179.59,179.55,2.7856]
[1730215462974,6.1508,179.59,179.5,9.36214768]
[1730215463172,9.36214768,179.58,179.48,9.36214768]
[1730215463366,9.36214768,179.58,179.5,2.7863]
[1730215463367,9.36214768,179.55,179.5,2.7863]
[1730215463576,4.88,179.54,179.5,2.7863]
[1730215463764,7.72868043,179.54,179.5,2.7863]
[1730215465372,7.72868043,179.54,179.45,9.36214768]
[1730215465572,7.72868043,179.54,179.47,9.36214768]
[1730215466885,7.72868043,179.54,179.53,2.786]
[1730215469882,2.84868043,179.54,179.53,2.786]
[1730215470074,4.7,179.55,179.49,9.36214768]
[1730215470478,4.7,179.55,179.53,2.7859]
[1730215470678,4.7,179.55,179.49,9.36214768]
[1730215471183,4.7,179.55,179.54,2.7858]
[1730215471381,10.63294768,179.59,179.51,9.36214768]
[1730215471382,1.2708,179.59,179.51,9.36214768]
[1730215471582,4.7,179.6,179.51,9.36214768]
[1730215471888,4.7,179.6,179.58,2.7851]
[1730215472279,4.7,179.6,179.51,9.36214768]
[1730215472780,69.54214768,179.61,179.58,2.7851]
[1730215472979,4.7,179.59,179.58,2.7851]
[1730215473389,11.97774768,179.66,179.58,2.7852]
[1730215473579,11.97774768,179.66,179.55,9.36214768]
[1730215473890,4.7,179.65,179.55,9.36214768]
[1730215474079,4.7,179.65,179.61,2.7846]
[1730215474684,12.14236868,179.67,179.55,9.36214768]
[1730215474989,4.7,179.66,179.55,9.36214768]
[1730215475188,2.79669433,179.67,179.66,2.784]
[1730215475390,10.82616988,179.69,179.58,9.36214768]
[1730215475689,4.7,179.67,179.58,9.36214768]
[1730215475988,7.42534867,179.67,179.64,2.7841]
[1730215477690,16.78749635,179.67,179.58,9.36214768]
[1730215478288,16.78749635,179.67,179.53,5.5719]
[1730215478289,16.78749635,179.67,179.62,2.7845]
[1730215480283,7.42534867,179.67,179.65,2.7841]
[1730215480885,7.42534867,179.67,179.6,9.36214768]
[1730215481081,4.7,179.67,179.66,2.784]
[1730215481789,9.60319941,179.69,179.68,2.7836]
[1730215482194,4.7,179.7,179.69,2.7835]
[1730215482590,9.36214768,179.74,179.69,2.7835]
[1730215482887,4.7,179.73,179.65,9.36214768]
[1730215484390,4.7,179.73,179.7,2.7832]
[1730215484583,4.7,179.73,179.65,9.36214768]
[1730215484793,4.7,179.73,179.7,2.7833]
[1730215485497,4.7,179.72,179.7,2.7833]
[1730215486695,4.7,179.72,179.69,2.7834]
[1730215487889,4.7,179.72,179.65,9.36214768]
[1730215488195,4.7,179.72,179.68,2.7836]
[1730215488498,4.7,179.72,179.63,9.36214768]
[1730215488700,4.7,179.72,179.67,2.7837]
[1730215488889,4.7,179.72,179.63,9.36214768]
[1730215489196,4.7,179.72,179.67,2.7837]
[1730215489393,4.7,179.72,179.63,9.36214768]
[1730215489999,4.7,179.72,179.67,2.7837]
[1730215490390,9.36214768,179.71,179.63,9.36214768]
[1730215490590,9.36214768,179.71,179.6,9.36214768]
[1730215491297,9.36214768,179.71,179.65,2.784]
[1730215493598,18.95745346,179.73,179.69,2.7835]
[1730215493808,4.7,179.72,179.64,9.36214768]
[1730215494398,4.7,179.72,179.71,2.7832]
[1730215494900,4.7,179.72,179.7,2.7833]
[1730215495399,4.7,179.72,179.68,2.7836]
[1730215496097,4.7,179.72,179.7,2.7832]
[1730215496300,4.7,179.72,179.66,9.36214768]
[1730215496703,4.7,179.72,179.64,9.36214768]
[1730215497099,9.36214768,179.71,179.62,9.36214768]
[1730215497900,9.36214768,179.69,179.6,9.36214768]
[1730215498305,9.36214768,179.69,179.65,2.7841]
[1730215499105,9.36214768,179.69,179.66,2.7839]
[1730215499409,14.06214768,179.72,179.66,2.7839]
[1730215499599,14.06214768,179.72,179.62,9.36214768]
[1730215499799,14.06214768,179.72,179.64,9.36214768]
[1730215499800,4.6,179.71,179.64,9.36214768]
[1730215500306,13.39113911,179.76,179.68,9.36214768]
[1730215500509,4.6,179.75,179.68,9.36214768]
[1730215500812,4.6,179.74,179.68,9.36214768]
[1730215501506,4.6,179.74,179.71,2.7831]
[1730215501704,4.6,179.74,179.68,9.36214768]
[1730215502115,4.6,179.74,179.69,2.7834]
[1730215502304,4.6,179.74,179.68,9.36214768]
[1730215502705,4.6,179.74,179.71,2.7831]
[1730215502903,4.6,179.74,179.66,9.36214768]
[1730215503111,9.36214768,179.74,179.64,9.36214768]
[1730215503405,9.36214768,179.72,179.62,9.36214768]
[1730215503811,9.36214768,179.71,179.62,9.36214768]
[1730215504314,4.6,179.7,179.67,2.7837]
[1730215504910,4.6,179.7,179.68,2.7836]
[1730215505305,4.6,179.7,179.62,9.36214768]
[1730215505507,4.6,179.7,179.67,2.7838]
[1730215505910,4.6,179.7,179.62,9.36214768]
[1730215506819,4.6,179.7,179.67,2.7837]
[1730215507617,4.6,179.7,179.62,9.36214768]
[1730215508013,4.6,179.7,179.68,2.7836]
[1730215508214,4.6,179.7,179.62,9.36214768]
[1730215508711,4.6,179.7,179.67,2.7837]
[1730215511622,4.6,179.7,179.62,9.36214768]
[1730215511623,4.6,179.7,179.68,2.7835]
[1730215512721,4.6,179.7,179.67,2.7838]
[1730215513125,9.36214768,179.69,179.58,9.36214768]
[1730215513327,9.36214768,179.69,179.53,0.7427]
[1730215513328,9.36214768,179.66,179.56,9.36214768]
[1730215513520,9.36214768,179.66,179.53,10.9147]
[1730215513521,9.36214768,179.64,179.53,15.67684768]
[1730215513720,9.36214768,179.64,179.59,2.7849]
[1730215514018,9.36214768,179.64,179.53,15.67684768]
[1730215514217,12.08811142,179.64,179.6,2.7848]
[1730215514422,12.08811142,179.64,179.55,9.36214768]
[1730215514830,4.6,179.64,179.6,2.7848]
[1730215515016,4.6,179.64,179.59,9.36214768]
[1730215515421,2.83153703,179.66,179.59,9.36214768]
[1730215515628,4.6,179.67,179.59,9.36214768]
[1730215515921,4.6,179.67,179.64,2.7842]
[1730215516225,2.84021545,179.66,179.61,9.36214768]
[1730215516420,2.84021545,179.66,179.65,2.7841]
[1730215518619,10.57314768,179.73,179.63,9.36214768]
[1730215518822,4.6,179.72,179.67,2.7837]
[1730215519522,9.36214768,179.71,179.65,2.784]
[1730215519727,9.36214768,179.71,179.61,9.36214768]
[1730215520127,9.36214768,179.71,179.66,2.7839]
[1730215520732,4.6,179.72,179.61,9.36214768]
[1730215520932,4.6,179.72,179.67,2.7837]
[1730215521935,4.6,179.71,179.67,2.7837]
[1730215524338,4.6,179.71,179.64,9.36214768]
[1730215524631,4.6,179.74,179.66,9.36214768]
[1730215525037,2.559,179.76,179.72,2.783]
[1730215525232,4.6,179.75,179.66,9.36214768]
[1730215525428,4.14070331,179.77,179.68,9.36214768]
[1730215525627,4.6,179.75,179.73,2.7828]
[1730215526236,4.6,179.75,179.72,2.7829]
[1730215526441,4.6,179.75,179.68,9.36214768]
[1730215526643,4.6,179.76,179.64,8.3524]
[1730215526843,4.6,179.76,179.68,9.36214768]
[1730215527941,4.6,179.76,179.72,2.7829]
[1730215528139,13.96214768,179.76,179.66,9.36214768]
[1730215528543,13.96214768,179.76,179.7,2.7833]
[1730215529436,15.16784768,179.76,179.7,2.7833]
[1730215531247,15.16784768,179.76,179.69,2.7835]
[1730215531644,9.36214768,179.73,179.64,9.36214768]
[1730215531843,9.36214768,179.71,179.61,9.36214768]
[1730215532146,4.54,179.7,179.61,9.36214768]
[1730215532345,4.54,179.7,179.65,2.784]
[1730215533348,4.54,179.7,179.66,2.7839]
[1730215533649,4.54,179.7,179.59,9.36214768]
[1730215533841,4.54,179.7,179.54,5.5716]
[1730215533842,9.36214768,179.66,179.56,9.36214768]
[1730215534039,4.54,179.65,179.56,9.36214768]
[1730215534645,4.54,179.65,179.63,2.7844]
[1730215534839,4.54,179.65,179.59,9.36214768]
[1730215535048,4.54,179.65,179.63,2.7843]
[1730215535348,4.54,179.65,179.59,9.36214768]
[1730215535951,4.54,179.65,179.56,9.36214768]
[1730215536847,4.54,179.65,179.61,2.7846]
[1730215538154,4.54,179.65,179.63,2.7843]
[1730215538754,4.54,179.65,179.58,2.7851]
[1730215538955,4.54,179.65,179.56,9.36214768]
[1730215539547,4.54,179.65,179.63,2.7843]
[1730215540058,4.54,179.67,179.61,9.36214768]
[1730215540257,4.54,179.67,179.58,9.36214768]
[1730215540557,7.26421534,179.67,179.61,9.36214768]
[1730215540752,7.26421534,179.67,179.66,2.784]
[1730215541254,4.54,179.67,179.66,2.784]
[1730215543760,9.6240874,179.71,179.65,9.36214768]
[1730215544054,12.44943179,179.77,179.69,9.36214768]
[1730215544254,23.53407616,179.78,179.69,9.36214768]
[1730215544451,9.63192848,179.77,179.69,9.36214768]
[1730215544652,16.91726559,179.78,179.74,2.7826]
[1730215544958,7.28533711,179.78,179.69,9.36214768]
[1730215545146,7.28533711,179.78,179.71,2.7831]
[1730215545346,12.18572848,179.79,179.67,4.54]
[1730215545347,12.18572848,179.79,179.73,9.36214768]
[1730215545562,2.5538,179.79,179.73,9.36214768]
[1730215545964,2.5538,179.79,179.7,9.36214768]
[1730215546150,2.5538,179.79,179.67,4.54]
[1730215546151,9.36214768,179.78,179.68,9.36214768]
[1730215546449,9.63192848,179.81,179.76,9.36214768]
[1730215546680,9.63192848,179.85,179.8,9.36214768]
[1730215546849,2.76196419,179.87,179.83,2.7813]
[1730215547056,13.90214768,179.88,179.78,9.36214768]
[1730215547251,16.71089651,179.88,179.78,9.36214768]
[1730215547659,7.34874883,179.88,179.81,9.36214768]
[1730215548057,7.34874883,179.88,179.84,2.7811]
[1730215548253,7.34874883,179.88,179.81,9.36214768]
[1730215549351,7.34874883,179.88,179.84,2.7811]
[1730215550464,9.63192848,179.9,179.83,9.36214768]
[1730215550661,4.54,179.88,179.83,9.36214768]
[1730215551261,4.54,179.88,179.85,2.7809]
[1730215554071,4.54,179.88,179.81,9.36214768]
[1730215555167,4.54,179.88,179.85,2.7809]
[1730215555463,4.54,179.88,179.81,9.36214768]
[1730215555658,4.54,179.88,179.71,0.7456]
[1730215555659,9.63192848,179.92,179.83,9.36214768]
[1730215555863,7.0152,179.93,179.85,9.36214768]
[1730215556067,9.8540396,179.93,179.85,9.36214768]
[1730215556268,4.54,179.93,179.91,2.7801]
[1730215556567,4.05620857,179.95,179.91,2.7801]
[1730215556868,79.99176088,180.05,179.91,2.7801]
[1730215556869,12.15140291,180.05,179.93,9.36214768]
[1730215557170,3.8346,180.04,179.93,9.36214768]
[1730215557766,3.8346,180.04,179.97,2.7791]
[1730215557966,9.36214768,180.02,179.97,2.7791]
[1730215558165,13.90214768,180.02,179.91,9.36214768]
[1730215558375,13.90214768,180.02,179.95,2.7794]
[1730215558767,13.90214768,180.02,179.91,9.36214768]
[1730215558768,9.36214768,180.0,179.91,9.36214768]
[1730215558963,9.36214768,180.0,179.89,9.36214768]
[1730215559158,9.36214768,180.0,179.9,9.36214768]
[1730215559364,9.36214768,180.0,179.96,2.7792]
[1730215559665,13.90214768,180.02,179.93,9.36214768]
[1730215560467,13.90214768,180.02,179.97,2.7792]
[1730215560671,13.90214768,180.02,179.91,9.36214768]
[1730215561062,13.90214768,180.02,179.98,2.7789]
[1730215561266,13.90214768,180.02,179.93,9.36214768]
[1730215561267,4.54,180.02,179.93,9.36214768]
[1730215561662,4.54,180.02,179.99,2.7787]
[1730215562066,4.54,180.02,179.93,9.36214768]
[1730215562267,13.19674768,180.04,180.0,9.36214768]
[1730215562268,1.2514,180.04,180.0,9.36214768]
[1730215562469,16.72,180.15,180.0,9.36214768]
[1730215562470,6.0146,180.1,180.0,9.36214768]
[1730215562664,4.72,180.09,180.02,2.7783]
[1730215562875,4.72,180.09,179.95,9.36214768]
[1730215562876,9.36214768,180.08,179.95,9.36214768]
[1730215563070,9.36214768,180.06,179.95,9.36214768]
[1730215563264,10.67934768,180.08,180.04,2.778]
[1730215563476,10.67934768,180.08,180.0,9.36214768]
[1730215563773,4.72,180.09,180.05,2.7778]
[1730215563960,1.2931,180.14,180.0,9.36214768]
[1730215563961,1.3172,180.13,180.0,9.36214768]
[1730215564161,9.36214768,180.11,180.0,9.36214768]
[1730215565075,9.36214768,180.11,180.04,2.778]
[1730215565577,9.36214768,180.11,180.0,9.36214768]
[1730215565873,9.36214768,180.11,180.03,2.7782]
[1730215566076,9.36214768,180.11,180.0,9.36214768]
[1730215566270,9.36214768,180.11,179.93,0.7431]
[1730215566271,9.36214768,180.05,179.98,2.779]
[1730215566475,4.7,180.04,179.98,2.779]
[1730215566776,2.4898,180.04,180.01,2.7784]
[1730215566973,2.4898,180.04,179.99,9.36214768]
[1730215567178,2.4898,180.04,179.43,11.23400684]
[1730215567179,9.36214768,180.01,179.73,347.3487]
[1730215567369,65.42,180.03,179.89,9.36214768]
[1730215567370,1.2301,180.0,179.89,9.36214768]
[1730215567977,5.36,179.99,179.91,9.36214768]
[1730215568172,5.36,179.99,179.89,9.36214768]
[1730215568673,5.36,179.99,179.91,2.78]
[1730215568879,5.36,179.99,179.89,9.36214768]
[1730215569078,14.72214768,179.99,179.89,9.36214768]
[1730215569268,14.72214768,179.99,179.81,5.36]
[1730215569269,9.36214768,179.97,179.87,9.36214768]
[1730215569575,9.36214768,179.94,179.85,9.36214768]
[1730215569770,9.36214768,179.94,179.81,5.36]
[1730215569771,6.5737,179.93,179.87,9.36214768]
[1730215569969,5.36,179.92,179.84,9.36214768]
[1730215570572,14.72214768,179.92,179.82,9.36214768]
[1730215570882,9.36214768,179.9,179.8,9.36214768]
[1730215571078,1.2941,179.91,179.77,9.36214768]
[1730215571273,9.36214768,179.87,179.77,9.36214768]
[1730215571472,9.36214768,179.85,179.77,2.7822]
[1730215571678,6.5737,179.84,179.77,2.7822]
[1730215571882,3.96665335,179.84,179.75,9.36214768]
[1730215572086,5.36,179.83,179.79,2.7818]
[1730215572383,9.36214768,179.8,179.69,142.01140409]
[1730215572682,9.36214768,179.8,179.55,399.06]
[1730215572683,14.97599015,179.81,179.71,2.7831]
[1730215572872,1.2941,179.8,179.67,14.97599015]
[1730215573274,14.97599015,179.78,179.64,14.97599015]
[1730215573493,5.66,179.77,179.64,14.97599015]
[1730215573784,5.66,179.77,179.56,0.7407]
[1730215573785,14.97599015,179.7,179.56,14.97599015]
[1730215573974,14.97599015,179.7,179.45,60.08]
[1730215573975,14.97599015,179.67,179.53,14.97599015]
[1730215574177,5.66,179.66,179.56,2.7854]
[1730215574475,14.97599015,179.65,179.53,14.97599015]
[1730215574677,14.97599015,179.65,179.5,14.97599015]
[1730215575176,5.66,179.66,179.5,14.97599015]
[1730215575177,14.97599015,179.62,179.5,14.97599015]
[1730215575373,5.66,179.61,179.47,14.97599015]
[1730215575977,14.97599015,179.62,179.47,14.97599015]
[1730215576179,60.08,179.64,179.52,14.97599015]
[1730215576478,5.66,179.63,179.52,14.97599015]
[1730215576684,60.08,179.64,179.52,14.97599015]
[1730215576987,5.66,179.63,179.55,14.97599015]
[1730215577174,5.66,179.64,179.58,14.97599015]
[1730215577684,5.66,179.64,179.61,14.97599015]
[1730215578089,5.66,179.67,179.61,14.97599015]
[1730215578688,5.66,179.67,179.65,2.784]
[1730215579081,5.66,179.67,179.64,14.97599015]
[1730215579288,5.66,179.71,179.64,14.97599015]
[1730215579485,5.66,179.71,179.67,14.97599015]
[1730215579684,5.66,179.71,179.69,2.7834]
[1730215579887,5.66,179.71,179.64,14.97599015]
[1730215580784,1.2378,179.76,179.67,14.97599015]
[1730215580997,5.66,179.75,179.7,14.97599015]
[1730215583089,5.66,179.75,179.74,2.7827]
[1730215583297,1.2694,179.8,179.72,14.97599015]
[1730215583488,5.66,179.79,179.72,14.97599015]
[1730215583691,1.2378,179.83,179.79,2.7819]
[1730215583887,5.66,179.82,179.75,14.97599015]
[1730215584385,5.66,179.85,179.78,14.97599015]
[1730215584693,1.2325,179.89,179.8,14.97599015]
[1730215584890,1.2325,179.89,179.84,2.781]
[1730215585197,5.66,179.9,179.8,14.97599015]
[1730215585893,5.66,179.9,179.79,5.66]
[1730215585894,5.66,179.9,179.88,2.7805]
[1730215586092,1.2918,179.92,179.83,14.97599015]
[1730215586491,1.2918,179.92,179.88,2.7804]
[1730215587095,1.2918,179.92,179.86,2.7808]
[1730215587294,1.2918,179.92,179.8,14.97599015]
[1730215588091,1.2918,179.92,179.86,2.7807]
[1730215588299,1.2918,179.92,179.83,14.97599015]
[1730215588692,1.2918,179.92,179.88,2.7805]
[1730215588897,1.2918,179.92,179.83,14.97599015]
[1730215589303,1.2918,179.92,179.85,2.7809]
[1730215589498,5.66,179.94,179.86,14.97599015]
[1730215589701,8.1408,179.96,179.86,14.97599015]
[1730215590195,8.1408,179.96,179.84,20.63599015]
[1730215590396,8.1408,179.96,179.89,2.7804]
[1730215591100,8.1408,179.96,179.84,20.63599015]
[1730215591295,8.1408,179.96,179.84,5.66]
[1730215591803,8.1408,179.96,179.86,2.7808]
[1730215592101,8.1408,179.96,179.81,14.97599015]
[1730215592703,8.1408,179.96,179.84,14.97599015]
[1730215593103,14.97599015,179.94,179.81,14.97599015]
[1730215593997,14.97599015,179.94,179.82,2.7814]
[1730215594204,14.97599015,179.94,179.81,14.97599015]
[1730215594899,14.97599015,179.89,179.77,5.66]
[1730215595113,14.97599015,179.89,179.76,14.97599015]
[1730215595114,6.8698,179.88,179.76,14.97599015]
[1730215595494,6.8698,179.88,179.81,2.7816]
[1730215595697,6.8698,179.88,179.76,14.97599015]
[1730215596099,14.97599015,179.86,179.73,14.97599015]
[1730215596405,1.2573,179.85,179.73,14.97599015]
[1730215596608,14.97599015,179.83,179.75,2.7824]
[1730215596805,5.66,179.82,179.71,141.97470366]
[1730215597007,14.97599015,179.8,179.72,2.783]
[1730215597907,14.97599015,179.8,179.68,5.66]
[1730215598118,14.97599015,179.8,179.72,2.7829]
[1730215598297,17.807863,179.8,179.68,5.66]
[1730215598496,17.807863,179.8,179.73,2.7828]
[1730215599513,5.66,179.82,179.77,2.7821]
[1730215599914,5.66,179.82,179.7,14.97599015]
[1730215600619,5.66,179.82,179.77,2.7821]
[1730215600803,5.66,179.82,179.73,14.97599015]
[1730215602019,5.66,179.82,179.78,2.782]
[1730215604617,5.66,179.82,179.79,2.7819]
[1730215605808,5.66,179.82,179.71,2.7831]
[1730215605809,20.63599015,179.82,179.71,2.7831]
[1730215606116,22.53000612,179.94,179.63,0.7414]
[1730215606117,6.42,180.01,179.81,14.97599015]
[1730215606313,1.282,180.0,179.87,14.97599015]
[1730215607418,1.282,180.0,179.9,2.7802]
[1730215607713,1.282,180.0,179.8,14.97599015]
[1730215607913,1.282,180.0,179.84,14.97599015]
[1730215608103,1.282,180.0,179.88,2.7806]
[1730215608307,14.97599015,179.98,179.84,14.97599015]
[1730215608511,7.1,179.97,179.84,14.97599015]
[1730215609017,7.1,179.97,179.87,14.97599015]
[1730215609515,7.1,179.97,179.88,2.7805]
[1730215610304,7.1,179.97,179.87,2.7807]
[1730215610614,7.1,179.97,179.84,14.97599015]
[1730215610913,7.1,179.97,179.86,2.7807]
[1730215611217,7.1,179.97,179.84,14.97599015]
[1730215612704,1.282,180.0,179.87,14.97599015]
[1730215612904,7.1,179.99,179.87,14.97599015]
[1730215613105,7.1,179.99,179.93,2.7797]
[1730215613711,7.1,179.99,179.94,2.7795]
[1730215613911,1.282,180.0,179.9,14.97599015]
[1730215614218,5.35981754,180.01,179.9,14.97599015]
[1730215614415,5.35981754,180.01,179.93,2.7797]
[1730215616018,5.35981754,180.01,179.88,22.07599015]
[1730215616219,20.33580769,180.01,179.88,22.07599015]
[1730215616720,20.33580769,180.01,179.93,2.7798]
[1730215617019,20.33580769,180.01,179.88,22.07599015]
[1730215617411,5.35981754,180.01,179.9,14.97599015]
[1730215617611,2.5191,180.01,179.93,14.97599015]
[1730215618213,2.5191,180.01,179.96,2.7792]
[1730215618718,1.2694,180.01,179.97,2.7791]
[1730215618924,1.2694,180.01,179.93,14.97599015]
[1730215619221,1.2694,180.01,179.95,2.7794]
[1730215619420,1.2694,180.01,179.93,14.97599015]
[1730215619927,1.2694,180.01,179.95,2.7794]
[1730215620219,1.2694,180.01,179.93,14.97599015]
[1730215620220,1.2694,180.01,179.93,17.75579015]
[1730215620521,1.2694,180.01,179.9,14.97599015]
[1730215620926,1.2694,180.01,179.93,14.97599015]
[1730215621612,1.2694,180.01,179.9,14.97599015]
[1730215621813,1.2694,180.01,179.94,2.7796]
[1730215622218,1.2694,180.01,179.9,14.97599015]
[1730215622413,1.2694,180.01,179.93,2.7797]
[1730215622620,14.97599015,179.98,179.73,339.0]
[1730215622814,14.97599015,179.92,179.74,0.7439]
[1730215623015,8.298,179.91,179.77,14.97599015]
[1730215623219,9.6187,179.91,179.77,14.97599015]
[1730215623426,9.6187,179.91,179.8,2.7818]
[1730215623625,9.6187,179.91,179.77,14.97599015]
[1730215624730,7.08,179.91,179.8,14.97599015]
[1730215625428,7.08,179.91,179.83,2.7812]
[1730215626035,7.08,179.91,179.8,14.97599015]
[1730215626422,7.08,179.91,179.86,2.7808]
[1730215626620,7.08,179.91,179.8,14.97599015]
[1730215627032,7.08,179.91,179.84,2.7811]
[1730215627527,7.08,179.91,179.8,14.97599015]
[1730215627729,7.08,179.91,179.83,2.7813]
[1730215628936,7.08,179.91,179.8,14.97599015]
[1730215629232,7.08,179.91,179.84,2.7811]
[1730215629932,7.08,179.91,179.8,14.97599015]
[1730215630636,7.08,179.91,179.78,14.97599015]
[1730215630934,14.97599015,179.9,179.78,14.97599015]
[1730215631322,14.97599015,179.9,179.81,2.7816]
[1730215631519,14.97599015,179.9,179.75,14.97599015]
[1730215632022,14.97599015,179.9,179.77,14.97599015]
[1730215632223,7.1,179.89,179.77,14.97599015]
[1730215632419,7.1,179.89,179.82,2.7813]
[1730215632925,7.1,179.89,179.84,2.781]
[1730215634129,7.1,179.89,179.75,14.97599015]
[1730215634429,1.275,179.88,179.75,14.97599015]
[1730215634637,1.275,179.88,179.77,14.97599015]
[1730215635831,1.275,179.88,179.83,2.7812]
[1730215637233,1.275,179.88,179.84,2.7812]
[1730215637628,7.1,179.89,179.84,2.7812]
[1730215638029,1.263,179.94,179.8,14.97599015]
[1730215638230,6.88,179.93,179.87,2.7806]
[1730215638435,2.81859713,179.93,179.83,14.97599015]
[1730215638735,9.69859713,179.93,179.83,14.97599015]
[1730215639337,9.69859713,179.93,179.89,2.7803]
[1730215639539,66.94,179.96,179.86,14.97599015]
[1730215639731,6.88,179.96,179.86,14.97599015]
[1730215639936,6.88,179.96,179.93,2.7796]
[1730215640137,6.88,179.96,179.86,14.97599015]
[1730215640435,14.51513028,179.99,179.94,2.7795]
[1730215640734,14.51513028,179.99,179.91,14.97599015]
[1730215640937,14.51513028,179.99,179.93,2.7797]
[1730215641231,14.51513028,179.99,179.91,14.97599015]
[1730215641435,6.88,179.99,179.93,2.7797]
[1730215641638,6.88,179.99,179.91,14.97599015]
[1730215641840,1.2521,180.0,179.91,14.97599015]
[1730215642043,6.88,180.01,179.95,2.7793]
[1730215642546,2.72116309,180.0,179.91,14.97599015]
[1730215642837,6.88,180.02,179.91,14.97599015]
[1730215643552,11.52883028,180.04,179.94,14.97599015]
[1730215643740,10.21373028,180.04,179.94,14.97599015]
[1730215644537,10.21373028,180.04,179.97,2.7792]
[1730215644741,7.63513028,180.04,179.96,14.97599015]
[1730215646338,2.77907427,180.07,180.0,2.7786]
[1730215646643,6.88,180.08,179.99,14.97599015]
[1730215647342,9.66380153,180.08,179.99,14.97599015]
[1730215647534,9.66380153,180.08,180.01,2.7784]
[1730215647835,6.88,180.08,179.99,14.97599015]
[1730215648231,6.88,180.09,180.02,2.7783]
[1730215649141,2.78806311,180.08,180.02,2.7783]
[1730215649542,2.78806311,180.08,180.01,2.7785]
[1730215650336,2.78806311,180.08,179.99,14.97599015]
[1730215650535,6.88,180.09,179.99,14.97599015]